[Event "Titled Tuesday Blitz August 31 2021"]
[White "Idrisov, Ildar F"]
[Black "Mikhailovsky, Vladimir"]
[WhiteFideId "4151020"]
[BlackFideId "34105414"]
[WhiteElo "2209"]
[BlackElo "2315"]
[Result "0-1"]
[Round "01"]
[TimeControl "180+1"]
[Date "2021.08.31"]
[WhiteClock "0:00:24"]
[BlackClock "0:00:37"]

1. Nf3 {[%clk 0:02:59]}  d5 {[%clk 0:02:59]} 2. b3 {[%clk 0:02:59]}  c6 {[%clk 0:02:58]} 3. Bb2 {[%clk 0:02:59]}  Bg4 {[%clk 0:02:58]} 4. e3 {[%clk 0:02:59]}  Nd7 {[%clk 0:02:58]} 5. d4 {[%clk 0:03:00]}  Ngf6 {[%clk 0:02:57]} 6. Be2 {[%clk 0:03:00]}  e6 {[%clk 0:02:57]} 7. O-O {[%clk 0:03:00]}  Bd6 {[%clk 0:02:58]} 8. Ne5 {[%clk 0:03:01]}  Bxe2 {[%clk 0:02:54]} 9. Qxe2 {[%clk 0:03:01]}  O-O {[%clk 0:02:55]} 10. Nd2 {[%clk 0:03:00]}  a5 {[%clk 0:02:51]} 11. a3 {[%clk 0:03:00]}  Qc7 {[%clk 0:02:48]} 12. f4 {[%clk 0:02:59]}  c5 {[%clk 0:02:45]} 13. c4 {[%clk 0:02:57]}  a4 {[%clk 0:02:42]} 14. Nxd7 {[%clk 0:02:46]}  Qxd7 {[%clk 0:02:33]} 15. dxc5 {[%clk 0:02:45]}  Bxc5 {[%clk 0:02:34]} 16. Bxf6 {[%clk 0:02:44]}  gxf6 {[%clk 0:02:34]} 17. b4 {[%clk 0:02:45]}  Ba7 {[%clk 0:02:31]} 18. c5 {[%clk 0:02:45]}  f5 {[%clk 0:02:30]} 19. Nf3 {[%clk 0:02:43]}  b6 {[%clk 0:02:28]} 20. c6 {[%clk 0:02:22]}  Qxc6 {[%clk 0:02:21]} 21. b5 {[%clk 0:02:22]}  Qb7 {[%clk 0:02:04]} 22. Ne5 {[%clk 0:02:22]}  Bb8 {[%clk 0:02:03]} 23. Nc6 {[%clk 0:02:21]}  Bd6 {[%clk 0:02:03]} 24. Qh5 {[%clk 0:02:16]}  f6 {[%clk 0:01:55]} 25. Rf3 {[%clk 0:02:12]}  Qf7 {[%clk 0:01:54]} 26. Rg3+ {[%clk 0:02:02]}  Kh8 {[%clk 0:01:54]} 27. Qh6 {[%clk 0:02:02]}  Rg8 {[%clk 0:01:52]} 28. Kf2 {[%clk 0:01:56]}  Bc5 {[%clk 0:01:45]} 29. Nd4 {[%clk 0:01:35]}  Rxg3 {[%clk 0:01:35]} 30. hxg3 {[%clk 0:01:34]}  Rg8 {[%clk 0:01:34]} 31. Rh1 {[%clk 0:01:28]}  Rg6 {[%clk 0:01:20]} 32. Qh5 {[%clk 0:01:23]}  h6 {[%clk 0:00:59]} 33. Rh3 {[%clk 0:01:06]}  Kh7 {[%clk 0:00:57]} 34. Rh4 {[%clk 0:01:00]}  Bxa3 {[%clk 0:00:55]} 35. g4 {[%clk 0:01:00]}  fxg4 {[%clk 0:00:46]} 36. Rxg4 {[%clk 0:00:59]}  f5 {[%clk 0:00:43]} 37. Rg5 {[%clk 0:00:49]}  Be7 {[%clk 0:00:40]} 38. Rg3 {[%clk 0:00:32]}  a3 {[%clk 0:00:40]} 39. Nb3 {[%clk 0:00:25]}  a2 {[%clk 0:00:38]} 40. Kf3 {[%clk 0:00:24]}  Rxg3+ {[%clk 0:00:37]} 0-1


[Site "https://www.chess.com"]

[Event "Titled Tuesday Blitz August 31 2021"]
[White "Karas, Marek"]
[Black "Postny, Evgeny"]
[WhiteFideId "14928558"]
[BlackFideId "2804344"]
[WhiteElo "2264"]
[BlackElo "2521"]
[Result "0-1"]
[Round "01"]
[TimeControl "180+1"]
[Date "2021.08.31"]
[WhiteClock "0:00:03"]
[BlackClock "0:00:09"]

1. d4 {[%clk 0:02:59]}  Nf6 {[%clk 0:02:57]} 2. Nf3 {[%clk 0:02:58]}  c5 {[%clk 0:02:56]} 3. d5 {[%clk 0:02:57]}  g6 {[%clk 0:02:56]} 4. Nc3 {[%clk 0:02:57]}  d6 {[%clk 0:02:56]} 5. e4 {[%clk 0:02:57]}  Bg7 {[%clk 0:02:57]} 6. Bd3 {[%clk 0:02:53]}  Bg4 {[%clk 0:02:56]} 7. O-O {[%clk 0:02:53]}  O-O {[%clk 0:02:56]} 8. h3 {[%clk 0:02:53]}  Bxf3 {[%clk 0:02:56]} 9. Qxf3 {[%clk 0:02:54]}  Na6 {[%clk 0:02:55]} 10. Bf4 {[%clk 0:02:50]}  Nd7 {[%clk 0:02:53]} 11. Rab1 {[%clk 0:02:41]}  Nb4 {[%clk 0:02:50]} 12. a3 {[%clk 0:02:39]}  Nxd3 {[%clk 0:02:49]} 13. Qxd3 {[%clk 0:02:39]}  a6 {[%clk 0:02:41]} 14. a4 {[%clk 0:02:31]}  Qa5 {[%clk 0:02:40]} 15. Bd2 {[%clk 0:02:26]}  Qc7 {[%clk 0:02:38]} 16. f4 {[%clk 0:02:10]}  Rab8 {[%clk 0:02:37]} 17. Ne2 {[%clk 0:02:06]}  c4 {[%clk 0:02:30]} 18. Qf3 {[%clk 0:02:05]}  Nc5 {[%clk 0:02:25]} 19. a5 {[%clk 0:02:00]}  b5 {[%clk 0:02:21]} 20. axb6 {[%clk 0:02:00]}  Qxb6 {[%clk 0:02:21]} 21. Kh2 {[%clk 0:01:55]}  Na4 {[%clk 0:02:13]} 22. b3 {[%clk 0:01:53]}  cxb3 {[%clk 0:02:13]} 23. Rxb3 {[%clk 0:01:47]}  Qc7 {[%clk 0:02:08]} 24. Rfb1 {[%clk 0:01:39]}  Rxb3 {[%clk 0:01:52]} 25. Qxb3 {[%clk 0:01:40]}  Nc5 {[%clk 0:01:50]} 26. Qc4 {[%clk 0:01:40]}  Rc8 {[%clk 0:01:40]} 27. Bc3 {[%clk 0:01:16]}  Bxc3 {[%clk 0:01:16]} 28. Nxc3 {[%clk 0:01:17]}  Nd7 {[%clk 0:01:13]} 29. Qxc7 {[%clk 0:01:12]}  Rxc7 {[%clk 0:01:14]} 30. Rb3 {[%clk 0:01:09]}  Rc4 {[%clk 0:01:06]} 31. Kg3 {[%clk 0:00:49]}  Nc5 {[%clk 0:01:06]} 32. Rb8+ {[%clk 0:00:46]}  Kg7 {[%clk 0:01:06]} 33. Ne2 {[%clk 0:00:44]}  Nxe4+ {[%clk 0:01:02]} 34. Kf3 {[%clk 0:00:43]}  Nf6 {[%clk 0:01:02]} 35. Rb6 {[%clk 0:00:34]}  Nxd5 {[%clk 0:00:54]} 36. Rxa6 {[%clk 0:00:34]}  Rxc2 {[%clk 0:00:54]} 37. Ra7 {[%clk 0:00:33]}  f5 {[%clk 0:00:44]} 38. g4 {[%clk 0:00:28]}  Rc7 {[%clk 0:00:37]} 39. Ra5 {[%clk 0:00:28]}  Rc5 {[%clk 0:00:34]} 40. Ra7 {[%clk 0:00:26]}  Kf6 {[%clk 0:00:30]} 41. Ra8 {[%clk 0:00:17]}  Rb5 {[%clk 0:00:26]} 42. Nd4 {[%clk 0:00:10]}  Rb4 {[%clk 0:00:26]} 43. Ne2 {[%clk 0:00:10]}  Rb3+ {[%clk 0:00:25]} 44. Kg2 {[%clk 0:00:11]}  Ne3+ {[%clk 0:00:22]} 45. Kf3 {[%clk 0:00:07]}  Nxg4+ {[%clk 0:00:21]} 46. Kg2 {[%clk 0:00:07]}  Ne3+ {[%clk 0:00:20]} 47. Kf2 {[%clk 0:00:07]}  Nd5 {[%clk 0:00:18]} 48. Ra5 {[%clk 0:00:05]}  Nc3 {[%clk 0:00:17]} 49. Nd4 {[%clk 0:00:04]}  Ne4+ {[%clk 0:00:17]} 50. Kg2 {[%clk 0:00:05]}  Rg3+ {[%clk 0:00:16]} 51. Kh2 {[%clk 0:00:05]}  Rd3 {[%clk 0:00:17]} 52. Nc6 {[%clk 0:00:05]}  Rd2+ {[%clk 0:00:17]} 53. Kg1 {[%clk 0:00:05]}  Rc2 {[%clk 0:00:11]} 54. Nb8 {[%clk 0:00:04]}  h6 {[%clk 0:00:09]} 55. Ra7 {[%clk 0:00:03]}  g5 {[%clk 0:00:09]} 56. Nd7+ {[%clk 0:00:03]}  Kf7 {[%clk 0:00:09]} 57. fxg5 {[%clk 0:00:01]}  hxg5 {[%clk 0:00:10]} 58. Nb8 {[%clk 0:00:01]}  Ke6 {[%clk 0:00:09]} 59. Ra5 {[%clk 0:00:01]}  f4 {[%clk 0:00:08]} 60. Na6 {[%clk 0:00:01]}  Kf6 {[%clk 0:00:08]} 61. Ra3 {[%clk 0:00:01]}  e5 {[%clk 0:00:06]} 62. Nb4 {[%clk 0:00:01]}  Rc1+ {[%clk 0:00:05]} 63. Kg2 {[%clk 0:00:02]}  Ke6 {[%clk 0:00:06]} 64. Nd3 {[%clk 0:00:02]}  Rc3 {[%clk 0:00:06]} 65. Rxc3 {[%clk 0:00:01]}  Nxc3 {[%clk 0:00:07]} 66. Kf3 {[%clk 0:00:02]}  Kf5 {[%clk 0:00:07]} 67. Nb4 {[%clk 0:00:02]}  e4+ {[%clk 0:00:07]} 68. Kf2 {[%clk 0:00:02]}  d5 {[%clk 0:00:08]} 69. Nc2 {[%clk 0:00:03]}  Ke5 {[%clk 0:00:08]} 70. Nb4 {[%clk 0:00:03]}  d4 {[%clk 0:00:08]} 71. Nc6+ {[%clk 0:00:03]}  Kd5 {[%clk 0:00:09]} 72. Ne7+ {[%clk 0:00:04]}  Ke6 {[%clk 0:00:09]} 73. Nc6 {[%clk 0:00:04]}  d3 {[%clk 0:00:09]} 74. Nb4 {[%clk 0:00:03]}  d2 {[%clk 0:00:09]} 0-1


[Site "https://www.chess.com"]

[Event "Titled Tuesday Blitz August 31 2021"]
[White "Khanin, Semen"]
[Black "Filippova, Margarita"]
[WhiteFideId "4111990"]
[BlackFideId "34199680"]
[WhiteElo "2521"]
[BlackElo "1829"]
[Result "1-0"]
[Round "01"]
[TimeControl "180+1"]
[Date "2021.08.31"]
[WhiteClock "0:00:04"]
[BlackClock "0:00:01"]

1. c4 {[%clk 0:02:59]}  c5 {[%clk 0:02:59]} 2. Nc3 {[%clk 0:02:59]}  Nf6 {[%clk 0:02:59]} 3. g3 {[%clk 0:02:59]}  Nc6 {[%clk 0:02:58]} 4. Bg2 {[%clk 0:02:59]}  g6 {[%clk 0:02:56]} 5. d3 {[%clk 0:02:59]}  Bg7 {[%clk 0:02:56]} 6. Bd2 {[%clk 0:02:59]}  O-O {[%clk 0:02:56]} 7. Qc1 {[%clk 0:02:59]}  d6 {[%clk 0:02:44]} 8. Bh6 {[%clk 0:03:00]}  Nd4 {[%clk 0:02:39]} 9. Bxg7 {[%clk 0:02:55]}  Kxg7 {[%clk 0:02:38]} 10. e3 {[%clk 0:02:55]}  Nc6 {[%clk 0:02:37]} 11. Nge2 {[%clk 0:02:53]}  Bf5 {[%clk 0:02:36]} 12. Qd2 {[%clk 0:02:51]}  a6 {[%clk 0:02:25]} 13. O-O {[%clk 0:02:47]}  Rb8 {[%clk 0:02:25]} 14. d4 {[%clk 0:02:39]}  cxd4 {[%clk 0:02:18]} 15. exd4 {[%clk 0:02:38]}  Nb4 {[%clk 0:02:14]} 16. a3 {[%clk 0:02:33]}  Nc6 {[%clk 0:02:07]} 17. b4 {[%clk 0:02:27]}  Qc7 {[%clk 0:02:02]} 18. Rac1 {[%clk 0:02:27]}  Rfd8 {[%clk 0:01:57]} 19. Nd5 {[%clk 0:02:26]}  Qd7 {[%clk 0:01:50]} 20. Nxf6 {[%clk 0:02:26]}  exf6 {[%clk 0:01:49]} 21. Nf4 {[%clk 0:02:26]}  Re8 {[%clk 0:01:45]} 22. a4 {[%clk 0:01:59]}  Be4 {[%clk 0:01:42]} 23. b5 {[%clk 0:01:59]}  Nd8 {[%clk 0:01:35]} 24. Bxe4 {[%clk 0:01:55]}  Rxe4 {[%clk 0:01:34]} 25. Rfe1 {[%clk 0:01:51]}  f5 {[%clk 0:01:33]} 26. f3 {[%clk 0:01:41]}  Rxe1+ {[%clk 0:01:29]} 27. Rxe1 {[%clk 0:01:41]}  Ne6 {[%clk 0:01:25]} 28. Nd5 {[%clk 0:01:37]}  Re8 {[%clk 0:01:18]} 29. Qc3 {[%clk 0:01:34]}  f6 {[%clk 0:01:10]} 30. b6 {[%clk 0:01:09]}  Qxa4 {[%clk 0:00:41]} 31. c5 {[%clk 0:00:54]}  Qc6 {[%clk 0:00:27]} 32. Nxf6 {[%clk 0:00:53]}  Re7 {[%clk 0:00:15]} 33. Nh5+ {[%clk 0:00:21]}  Kf7 {[%clk 0:00:14]} 34. Nf6 {[%clk 0:00:13]}  d5 {[%clk 0:00:07]} 35. Nxh7 {[%clk 0:00:09]}  Kg7 {[%clk 0:00:06]} 36. Ng5 {[%clk 0:00:10]}  Kf6 {[%clk 0:00:05]} 37. Nxe6 {[%clk 0:00:10]}  Rxe6 {[%clk 0:00:05]} 38. Kf2 {[%clk 0:00:10]}  Rxe1 {[%clk 0:00:03]} 39. Qxe1 {[%clk 0:00:10]}  Qb5 {[%clk 0:00:04]} 40. Qe5+ {[%clk 0:00:10]}  Kf7 {[%clk 0:00:03]} 41. Qxd5+ {[%clk 0:00:10]}  Kf6 {[%clk 0:00:03]} 42. Qe5+ {[%clk 0:00:09]}  Kf7 {[%clk 0:00:03]} 43. Qd5+ {[%clk 0:00:07]}  Kf6 {[%clk 0:00:03]} 44. Qd6+ {[%clk 0:00:06]}  Kf7 {[%clk 0:00:03]} 45. Kg2 {[%clk 0:00:06]}  Qe2+ {[%clk 0:00:02]} 46. Kh3 {[%clk 0:00:07]}  Qf1+ {[%clk 0:00:02]} 47. Kh4 {[%clk 0:00:07]}  Qc1 {[%clk 0:00:03]} 48. Qf4 {[%clk 0:00:05]}  g5+ {[%clk 0:00:01]} 49. Kxg5 {[%clk 0:00:05]}  Qc3 {[%clk 0:00:01]} 50. Qxf5+ {[%clk 0:00:04]} 1-0


[Site "https://www.chess.com"]

[Event "Titled Tuesday Blitz August 31 2021"]
[White "Kobalia, Mikhail"]
[Black "Navalgund, Niranjan"]
[WhiteFideId "4119150"]
[BlackFideId "5030854"]
[WhiteElo "2569"]
[BlackElo "2290"]
[Result "1/2-1/2"]
[Round "01"]
[TimeControl "180+1"]
[Date "2021.08.31"]
[WhiteClock "0:00:02"]
[BlackClock "0:00:18"]

1. e4 {[%clk 0:02:58]}  e5 {[%clk 0:02:59]} 2. Nf3 {[%clk 0:02:57]}  Nc6 {[%clk 0:02:59]} 3. Bb5 {[%clk 0:02:56]}  a6 {[%clk 0:02:58]} 4. Ba4 {[%clk 0:02:56]}  Nf6 {[%clk 0:02:58]} 5. O-O {[%clk 0:02:55]}  Be7 {[%clk 0:02:58]} 6. d3 {[%clk 0:02:54]}  b5 {[%clk 0:02:57]} 7. Bb3 {[%clk 0:02:54]}  d6 {[%clk 0:02:57]} 8. a3 {[%clk 0:02:51]}  O-O {[%clk 0:02:54]} 9. Nc3 {[%clk 0:02:52]}  Nb8 {[%clk 0:02:53]} 10. Re1 {[%clk 0:02:48]}  Bb7 {[%clk 0:02:51]} 11. Ne2 {[%clk 0:02:44]}  Nbd7 {[%clk 0:02:50]} 12. Ng3 {[%clk 0:02:44]}  Nc5 {[%clk 0:02:49]} 13. Ba2 {[%clk 0:02:44]}  Ne6 {[%clk 0:02:39]} 14. Nf5 {[%clk 0:02:43]}  Re8 {[%clk 0:02:34]} 15. Nxe7+ {[%clk 0:02:39]}  Qxe7 {[%clk 0:02:33]} 16. Nh4 {[%clk 0:02:38]}  g6 {[%clk 0:02:26]} 17. Nf3 {[%clk 0:02:35]}  Nh5 {[%clk 0:02:23]} 18. d4 {[%clk 0:02:18]}  Qf6 {[%clk 0:02:13]} 19. d5 {[%clk 0:02:15]}  Nef4 {[%clk 0:01:55]} 20. g3 {[%clk 0:02:14]}  Nh3+ {[%clk 0:01:55]} 21. Kg2 {[%clk 0:02:13]}  Bc8 {[%clk 0:01:55]} 22. Ng1 {[%clk 0:02:05]}  Qxf2+ {[%clk 0:01:51]} 23. Kh1 {[%clk 0:02:01]}  Nf6 {[%clk 0:01:15]} 24. Qe2 {[%clk 0:01:23]}  Bg4 {[%clk 0:00:46]} 25. Qxf2 {[%clk 0:00:44]}  Nxf2+ {[%clk 0:00:47]} 26. Kg2 {[%clk 0:00:44]}  N2xe4 {[%clk 0:00:48]} 27. Rf1 {[%clk 0:00:42]}  Kg7 {[%clk 0:00:42]} 28. Be3 {[%clk 0:00:41]}  Bd7 {[%clk 0:00:31]} 29. Rae1 {[%clk 0:00:39]}  c6 {[%clk 0:00:30]} 30. h3 {[%clk 0:00:17]}  cxd5 {[%clk 0:00:30]} 31. g4 {[%clk 0:00:18]}  h6 {[%clk 0:00:28]} 32. Kh2 {[%clk 0:00:17]}  Bc6 {[%clk 0:00:28]} 33. Nf3 {[%clk 0:00:17]}  d4 {[%clk 0:00:27]} 34. Bc1 {[%clk 0:00:17]}  Rad8 {[%clk 0:00:22]} 35. g5 {[%clk 0:00:17]}  Nh5 {[%clk 0:00:15]} 36. Bxf7 {[%clk 0:00:11]}  Kxf7 {[%clk 0:00:13]} 37. Nxe5+ {[%clk 0:00:11]}  Kg8 {[%clk 0:00:12]} 38. Nxc6 {[%clk 0:00:11]}  Rc8 {[%clk 0:00:12]} 39. Nxd4 {[%clk 0:00:10]}  Nxg5 {[%clk 0:00:11]} 40. Bxg5 {[%clk 0:00:09]}  hxg5 {[%clk 0:00:11]} 41. c3 {[%clk 0:00:09]}  Nf4 {[%clk 0:00:11]} 42. Rg1 {[%clk 0:00:08]}  Rxe1 {[%clk 0:00:09]} 43. Rxe1 {[%clk 0:00:08]}  Nd3 {[%clk 0:00:10]} 44. Re2 {[%clk 0:00:08]}  Kf7 {[%clk 0:00:10]} 45. Kg3 {[%clk 0:00:08]}  Re8 {[%clk 0:00:11]} 46. Rd2 {[%clk 0:00:07]}  Nc5 {[%clk 0:00:10]} 47. Rf2+ {[%clk 0:00:06]}  Kg7 {[%clk 0:00:10]} 48. Kg4 {[%clk 0:00:06]}  Re3 {[%clk 0:00:09]} 49. Rf3 {[%clk 0:00:04]}  Rxf3 {[%clk 0:00:07]} 50. Kxf3 {[%clk 0:00:04]}  Na4 {[%clk 0:00:08]} 51. b3 {[%clk 0:00:02]}  Nxc3 {[%clk 0:00:08]} 52. Ne6+ {[%clk 0:00:02]}  Kh6 {[%clk 0:00:07]} 53. Nc7 {[%clk 0:00:03]}  a5 {[%clk 0:00:07]} 54. b4 {[%clk 0:00:03]}  axb4 {[%clk 0:00:08]} 55. axb4 {[%clk 0:00:04]}  Na2 {[%clk 0:00:08]} 56. Nxb5 {[%clk 0:00:03]}  Nxb4 {[%clk 0:00:09]} 57. Nxd6 {[%clk 0:00:04]}  Nc6 {[%clk 0:00:09]} 58. Nf7+ {[%clk 0:00:04]}  Kh5 {[%clk 0:00:09]} 59. Kg3 {[%clk 0:00:04]}  Nd4 {[%clk 0:00:10]} 60. Ne5 {[%clk 0:00:03]}  Nf5+ {[%clk 0:00:11]} 61. Kg2 {[%clk 0:00:03]}  Kh4 {[%clk 0:00:12]} 62. Nxg6+ {[%clk 0:00:03]}  Kh5 {[%clk 0:00:12]} 63. Ne5 {[%clk 0:00:04]}  Nh4+ {[%clk 0:00:13]} 64. Kg3 {[%clk 0:00:03]}  Nf5+ {[%clk 0:00:14]} 65. Kg2 {[%clk 0:00:03]}  Nd4 {[%clk 0:00:15]} 66. Kg3 {[%clk 0:00:03]}  Nf5+ {[%clk 0:00:15]} 67. Kh2 {[%clk 0:00:02]}  Nh6 {[%clk 0:00:16]} 68. Kg2 {[%clk 0:00:02]}  g4 {[%clk 0:00:17]} 69. hxg4+ {[%clk 0:00:02]}  Nxg4 {[%clk 0:00:18]} 1/2-1/2


[Site "https://www.chess.com"]

[Event "Titled Tuesday Blitz August 31 2021"]
[White "Kovacsy, Barnabas"]
[Black "Goryachkina, Aleksandra"]
[WhiteFideId "769290"]
[BlackFideId "4147103"]
[WhiteElo "1938"]
[BlackElo "2441"]
[Result "1-0"]
[Round "01"]
[TimeControl "180+1"]
[Date "2021.08.31"]
[WhiteClock "0:00:07"]
[BlackClock "0:00:07"]

1. e4 {[%clk 0:02:59]}  c5 {[%clk 0:02:59]} 2. Nf3 {[%clk 0:02:59]}  e6 {[%clk 0:02:58]} 3. d4 {[%clk 0:02:58]}  cxd4 {[%clk 0:02:58]} 4. Nxd4 {[%clk 0:02:59]}  a6 {[%clk 0:02:57]} 5. Bd3 {[%clk 0:02:58]}  Nf6 {[%clk 0:02:53]} 6. O-O {[%clk 0:02:54]}  Qc7 {[%clk 0:02:44]} 7. c4 {[%clk 0:02:43]}  Bc5 {[%clk 0:02:39]} 8. Nb3 {[%clk 0:02:42]}  Ba7 {[%clk 0:02:38]} 9. Qe2 {[%clk 0:02:42]}  d6 {[%clk 0:02:37]} 10. Nc3 {[%clk 0:02:41]}  Nbd7 {[%clk 0:02:36]} 11. Be3 {[%clk 0:02:36]}  Bxe3 {[%clk 0:02:31]} 12. Qxe3 {[%clk 0:02:35]}  b6 {[%clk 0:02:25]} 13. Rac1 {[%clk 0:02:28]}  Bb7 {[%clk 0:02:22]} 14. Rfd1 {[%clk 0:02:25]}  O-O {[%clk 0:02:20]} 15. Bf1 {[%clk 0:02:22]}  Rfd8 {[%clk 0:02:17]} 16. f3 {[%clk 0:02:16]}  Rac8 {[%clk 0:02:15]} 17. Nd4 {[%clk 0:02:07]}  Ne5 {[%clk 0:02:09]} 18. b4 {[%clk 0:01:58]}  Nxc4 {[%clk 0:01:37]} 19. Bxc4 {[%clk 0:01:52]}  Qxc4 {[%clk 0:01:37]} 20. a3 {[%clk 0:01:34]}  Qc7 {[%clk 0:00:43]} 21. Na4 {[%clk 0:01:08]}  Qb8 {[%clk 0:00:37]} 22. Rxc8 {[%clk 0:01:07]}  Rxc8 {[%clk 0:00:34]} 23. Nxb6 {[%clk 0:01:07]}  Rd8 {[%clk 0:00:33]} 24. Na4 {[%clk 0:00:52]}  h6 {[%clk 0:00:32]} 25. Rc1 {[%clk 0:00:49]}  Nd7 {[%clk 0:00:31]} 26. Nb3 {[%clk 0:00:44]}  Rc8 {[%clk 0:00:28]} 27. Na5 {[%clk 0:00:34]}  Ba8 {[%clk 0:00:25]} 28. Kf2 {[%clk 0:00:32]}  Ne5 {[%clk 0:00:24]} 29. Rxc8+ {[%clk 0:00:27]}  Qxc8 {[%clk 0:00:24]} 30. Qc3 {[%clk 0:00:27]}  Qd8 {[%clk 0:00:20]} 31. Nb3 {[%clk 0:00:22]}  Bc6 {[%clk 0:00:18]} 32. Nac5 {[%clk 0:00:18]}  dxc5 {[%clk 0:00:14]} 33. Qxe5 {[%clk 0:00:18]}  cxb4 {[%clk 0:00:11]} 34. axb4 {[%clk 0:00:17]}  Qd1 {[%clk 0:00:09]} 35. Qc3 {[%clk 0:00:15]}  Bb5 {[%clk 0:00:07]} 36. Nd2 {[%clk 0:00:13]}  Qe2+ {[%clk 0:00:07]} 37. Kg3 {[%clk 0:00:12]}  Qe1+ {[%clk 0:00:07]} 38. Kh3 {[%clk 0:00:12]}  Kh7 {[%clk 0:00:07]} 39. e5 {[%clk 0:00:09]}  g6 {[%clk 0:00:07]} 40. Ne4 {[%clk 0:00:09]}  Kg7 {[%clk 0:00:07]} 41. Qxe1 {[%clk 0:00:07]} 1-0


[Site "https://www.chess.com"]

[Event "Titled Tuesday Blitz August 31 2021"]
[White "Kubicka, Anna"]
[Black "Xiong, Jeffery"]
[WhiteFideId "1152254"]
[BlackFideId "2047640"]
[WhiteElo "2010"]
[BlackElo "2724"]
[Result "0-1"]
[Round "01"]
[TimeControl "180+1"]
[Date "2021.08.31"]
[WhiteClock "0:00:05"]
[BlackClock "0:01:22"]

1. e4 {[%clk 0:03:00]}  e6 {[%clk 0:02:32]} 2. d4 {[%clk 0:03:00]}  d5 {[%clk 0:02:32]} 3. Nd2 {[%clk 0:03:00]}  Be7 {[%clk 0:02:31]} 4. Ngf3 {[%clk 0:02:59]}  Nf6 {[%clk 0:02:31]} 5. e5 {[%clk 0:02:58]}  Nfd7 {[%clk 0:02:31]} 6. Bd3 {[%clk 0:02:58]}  c5 {[%clk 0:02:32]} 7. c3 {[%clk 0:02:59]}  Nc6 {[%clk 0:02:32]} 8. O-O {[%clk 0:02:58]}  b6 {[%clk 0:02:33]} 9. Re1 {[%clk 0:02:51]}  g5 {[%clk 0:02:33]} 10. h3 {[%clk 0:02:50]}  h5 {[%clk 0:02:33]} 11. dxc5 {[%clk 0:02:19]}  bxc5 {[%clk 0:02:34]} 12. Qa4 {[%clk 0:02:19]}  Bb7 {[%clk 0:02:33]} 13. Nf1 {[%clk 0:02:15]}  g4 {[%clk 0:02:27]} 14. hxg4 {[%clk 0:02:13]}  c4 {[%clk 0:02:28]} 15. Be2 {[%clk 0:02:04]}  hxg4 {[%clk 0:02:28]} 16. N3h2 {[%clk 0:01:58]}  Ndxe5 {[%clk 0:02:27]} 17. Nxg4 {[%clk 0:01:50]}  Bd6 {[%clk 0:02:18]} 18. g3 {[%clk 0:01:38]}  Qe7 {[%clk 0:02:08]} 19. Nxe5 {[%clk 0:01:35]}  Bxe5 {[%clk 0:02:09]} 20. Bxc4 {[%clk 0:01:22]}  dxc4 {[%clk 0:01:42]} 21. Rxe5 {[%clk 0:01:21]}  O-O-O {[%clk 0:01:43]} 22. Re4 {[%clk 0:00:26]}  Ne5 {[%clk 0:01:22]} 23. Rxc4+ {[%clk 0:00:15]}  Kb8 {[%clk 0:01:22]} 24. Rh4 {[%clk 0:00:05]}  Nf3+ {[%clk 0:01:22]} 0-1


[Site "https://www.chess.com"]

[Event "Titled Tuesday Blitz August 31 2021"]
[White "Maksimovic, Bojan"]
[Black "Kejna, Piotr"]
[WhiteFideId "14408120"]
[BlackFideId "21821704"]
[WhiteElo "2439"]
[BlackElo "1640"]
[Result "1-0"]
[Round "01"]
[TimeControl "180+1"]
[Date "2021.08.31"]
[WhiteClock "0:00:07"]
[BlackClock "0:00:01"]

1. e4 {[%clk 0:02:57]}  c5 {[%clk 0:02:59]} 2. Nf3 {[%clk 0:02:55]}  d6 {[%clk 0:02:59]} 3. d4 {[%clk 0:02:55]}  cxd4 {[%clk 0:02:59]} 4. Nxd4 {[%clk 0:02:55]}  Nf6 {[%clk 0:02:59]} 5. Nc3 {[%clk 0:02:56]}  g6 {[%clk 0:02:59]} 6. Be3 {[%clk 0:02:54]}  Bg7 {[%clk 0:02:58]} 7. f3 {[%clk 0:02:55]}  Nc6 {[%clk 0:02:58]} 8. Qd2 {[%clk 0:02:55]}  O-O {[%clk 0:02:58]} 9. O-O-O {[%clk 0:02:55]}  d5 {[%clk 0:02:58]} 10. Nxc6 {[%clk 0:02:56]}  bxc6 {[%clk 0:02:58]} 11. Bh6 {[%clk 0:02:57]}  e5 {[%clk 0:02:43]} 12. Bxg7 {[%clk 0:02:53]}  Kxg7 {[%clk 0:02:42]} 13. exd5 {[%clk 0:02:54]}  Nxd5 {[%clk 0:02:41]} 14. Nxd5 {[%clk 0:02:55]}  cxd5 {[%clk 0:02:42]} 15. Qxd5 {[%clk 0:02:55]}  Qc7 {[%clk 0:02:41]} 16. Qd6 {[%clk 0:02:13]}  Qa5 {[%clk 0:02:30]} 17. Bc4 {[%clk 0:02:14]}  Bb7 {[%clk 0:02:16]} 18. Rhe1 {[%clk 0:02:05]}  Rac8 {[%clk 0:01:57]} 19. Bb3 {[%clk 0:01:58]}  Rc5 {[%clk 0:01:36]} 20. Kb1 {[%clk 0:01:59]}  Rfc8 {[%clk 0:01:28]} 21. Qd2 {[%clk 0:01:44]}  Qb6 {[%clk 0:01:24]} 22. Qd7 {[%clk 0:01:39]}  R8c7 {[%clk 0:01:22]} 23. Qd6 {[%clk 0:01:37]}  Qa5 {[%clk 0:01:21]} 24. h4 {[%clk 0:01:29]}  h5 {[%clk 0:01:15]} 25. f4 {[%clk 0:01:12]}  e4 {[%clk 0:00:47]} 26. Qd4+ {[%clk 0:01:11]}  Kh7 {[%clk 0:00:45]} 27. g3 {[%clk 0:00:47]}  Qb6 {[%clk 0:00:34]} 28. Qd6 {[%clk 0:00:42]}  Qa5 {[%clk 0:00:29]} 29. Qf6 {[%clk 0:00:42]}  R5c6 {[%clk 0:00:20]} 30. Qd4 {[%clk 0:00:40]}  Rc5 {[%clk 0:00:19]} 31. Re3 {[%clk 0:00:39]}  Qb6 {[%clk 0:00:16]} 32. Rc3 {[%clk 0:00:20]}  Rxc3 {[%clk 0:00:14]} 33. bxc3 {[%clk 0:00:20]}  Qa5 {[%clk 0:00:11]} 34. Kb2 {[%clk 0:00:20]}  Bc6 {[%clk 0:00:08]} 35. Qb4 {[%clk 0:00:19]}  Qf5 {[%clk 0:00:07]} 36. Qd4 {[%clk 0:00:14]}  Rd7 {[%clk 0:00:06]} 37. Qg1 {[%clk 0:00:14]}  Rb7 {[%clk 0:00:05]} 38. Rd6 {[%clk 0:00:10]}  Bd7 {[%clk 0:00:04]} 39. Qd4 {[%clk 0:00:10]}  a5 {[%clk 0:00:02]} 40. a4 {[%clk 0:00:09]}  Be6 {[%clk 0:00:01]} 41. Qe5 {[%clk 0:00:07]} 1-0


[Site "https://www.chess.com"]